Cogmind - Beta 11.1 *** ADVENTURER MODE // 2022.12.20 @ 07:03:13 Player: art-hropod Result: Destroyed by G-34 Mercenary with Small Laser Performance ------------- Evolutions (1) 500 Regions Visited (2) 400 Robots Destroyed (27) 135 Value Destroyed (492) 492 Prototype IDs (0) 0 Alien Tech Used (0) 0 Bonus (0) 0 TOTAL SCORE: 1527 Bonus ------- None Cogmind --------- Core Integrity 0/400 Matter 238/300 Energy 150/250 System Corruption 2% Temperature Cool (10) Movement Walking (190) Ox1 Location -9/Materials Parts ------- > --- POWER (1) -------- Ion Engine > --- PROPULSION (4) --- Improved Treads Aluminum Leg > --- UTILITY (2) ------ Medium Storage Unit Improved Terrain Scanner > --- WEAPON (2) ------- Small Laser > --- INVENTORY (10) --- Flight Unit Flight Unit Flight Unit Flight Unit Flight Unit VTOL Module Hacking Suite Peak State ------------ > --- POWER ------------ Light Ion Engine > --- PROPULSION ------- Aluminum Leg Aluminum Leg Aluminum Leg Aluminum Leg > --- UTILITY ---------- Heat Sink Medium Storage Unit > --- WEAPON ----------- EM Shotgun Light Assault Rifle > --- INVENTORY -------- Ion Engine Flight Unit Flight Unit Flight Unit Flight Unit Flight Unit VTOL Module Improved Terrain Scanner Grenade Launcher [Rating: 11] Favorites ----------- Power Light Ion Engine Engine Light Ion Engine Propulsion Aluminum Leg Treads Improved Treads Leg Aluminum Leg Utility Medium Storage Unit Device Heat Sink Storage Medium Storage Unit Processor Signal Interpreter Weapon Assault Rifle Energy Gun EM Pulse Gun Ballistic Gun Assault Rifle Launcher Grenade Launcher Build | -11 -10 -9 ------- Run | Scr Mat Mat Slots Evolved 2 | . . 2 Power . | . . . Propulsion 2 | . . 2 Utility . | . . . Weapon . | . . . Parts Attached 23 | 8 3 12 Power 2 | 1 . 1 Engine 2 | 1 . 1 Core . | . . . Reactor . | . . . Propulsion 8 | 2 . 6 Treads 1 | . . 1 Leg 7 | 2 . 5 Wheel . | . . . Hover . | . . . Flight . | . . . Utility 6 | 2 2 2 Device 2 | . . 2 Storage 3 | 2 1 . Processor 1 | . 1 . Hackware . | . . . Protection . | . . . Artifact . | . . . Weapon 7 | 3 1 3 Energy Gun 3 | 1 . 2 Energy Cannon . | . . . Ballistic Gun 3 | 2 1 . Ballistic Cannon . | . . . Launcher 1 | . . 1 Special Weapon . | . . . Impact Weapon . | . . . Slashing Weapon . | . . . Piercing Weapon . | . . . Special Melee Weapon . | . . . Unidentified Prototypes . | . . . Parts Lost 11 | . . 11 Power 1 | . . 1 Propulsion 5 | . . 5 Utility 2 | . . 2 Weapon 3 | . . 3 Highest Loss Streak 9 | . . 9 To Critical Strikes . | . . . Average Slot Usage (%) 90 | . 97 79 Engine 12 | . 14 9 Leg 29 | . 28 32 Device 2 | . . 7 Storage 12 | . 13 11 Processor 8 | . 12 2 Energy Gun 10 | . 12 5 Ballistic Gun 13 | . 15 10 Naked Turns . | . . . Heaviest Build 18 | 17 17 18 Greatest Support 40 | 20 20 40 Greatest Overweight (x) 3 | . . 3 Average Overweight (x) . | . . . Largest Inventory Capacity 10 | 8 10 10 Average Capacity 9 | 7 9 10 Most Carried 10 | 4 10 10 Average Carried 7 | 1 7 9 Final Capacity 10 | 8 10 10 Final Carried 10 | 3 10 7 Class Distribution -------------------- 100% | Mutant Dominant Class ---------------- Mutant | -10/Materials Mutant | -9/Materials Resources | -11 -10 -9 ----------- Run | Scr Mat Mat Matter Collected 463 | 295 59 109 Remotely . | . . . Salvage Created 761 | 106 291 364 Parts 60 | 3 30 27 Haulers Intercepted 2 | . 2 . Recyclers Shooed 3 | 1 . 2 Parts Field Recycled . | . . . Retrieved Matter . | . . . Parts Self-Destructed . | . . . Prevented . | . . . Kills | -11 -10 -9 ------- Run | Scr Mat Mat Combat Hostiles Destroyed 18 | . 7 11 Guns 8 | . 4 4 AOE 10 | . 3 7 Classes Destroyed 11 | 2 5 4 Worker 1 | . 1 . Builder 1 | . 1 . Tunneler 1 | 1 . . Hauler 2 | . 2 . Recycler 2 | 1 . 1 Operator 1 | . . 1 Watcher 1 | . . 1 Swarmer 9 | . 6 3 Grunt 7 | . 1 6 Brawler 1 | . . 1 Duelist 1 | . . 1 Best Kill Streak 8 | 2 7 8 Combat Bots Only 7 | . 6 7 Max Kills in Single Turn 4 | 1 3 4 Gunslinging 1 | . 1 . Exploded 4 | . 2 4 Melee . | . . . Uniques/NPCs Destroyed . | . . . Combat | -11 -10 -9 -------- Run | Scr Mat Mat Damage Taken 1420 | . 126 1294 Core 437 | . 34 403 Absorbed by Shields . | . . . Core Remaining (%) 93 | 100 86 . Volleys Fired 52 | 5 20 27 Largest 2 | 2 2 2 Hottest 65 | 60 60 65 Shots Fired 89 | 10 40 39 Gun 86 | 10 40 36 Cannon . | . . . Launcher 3 | . . 3 Special . | . . . Kinetic 50 | 5 20 25 Thermal . | . . . Explosive 3 | . . 3 Electromagnetic 36 | 5 20 11 Robot Hit Streak 16 | 7 10 16 Robot Miss Streak 5 | 2 5 3 Penetration Max . | . . . Secondary Targets 3 | . 1 2 Max Gunslinging Chain 1 | . 1 1 Shots Hit Robots 60 | 7 22 31 Core Hits 47 | 3 12 32 Critical Kills . | . . . Critical Parts Destroyed . | . . . Critical Strikes 1 | 1 . . Corrupt 1 | 1 . . Melee Attacks . | . . . Impact . | . . . Slashing . | . . . Piercing . | . . . Sneak Attacks . | . . . Combat Hostiles . | . . . Follow-up Attacks . | . . . Damage Inflicted 1529 | 121 438 970 Guns 683 | 78 276 329 Cannons . | . . . Explosions 846 | 43 162 641 Melee . | . . . Ramming . | . . . Kinetic 311 | 20 122 169 Thermal 205 | 43 162 . Explosive 641 | . . 641 Electromagnetic 372 | 58 154 160 Impact . | . . . Slashing . | . . . Piercing . | . . . Highest Corruption 2 | . . 2 Average Corruption 2 | . . 2 Corruption Purged . | . . . Corruption Blocked . | . . . Effects 3 | . . 3 Matter Fused 1 | . . 1 Heat Flow Errors 1 | . . 1 Data Loss (minor) 1 | . . 1 Overload Shots . | . . . Overflow Damage . | . . . Projectiles . | . . . Explosions . | . . . Melee . | . . . Knockbacks . | . . . Impact . | . . . Kinetic . | . . . Secondary . | . . . Self-Inflicted Damage 53 | . 21 32 Shots 3 | . 1 2 Rammed . | . . . Targets Rammed . | . . . Kicked . | . . . Crushed . | . . . Highest Temperature 231 | . 12 231 Average Temperature 101 | . 9 121 Received Heat Transfer 654 | . 6 648 Siege Activations . | . . . Robots Corrupted . | . . . Combat Hostiles . | . . . Parts Fried 1 | . 1 . Impact Corruptions . | . . . Robots Melted . | . . . Combat Hostiles . | . . . Parts Melted 1 | 1 . . Heat Transferred 350 | 50 300 . Parts Sabotaged . | . . . Parts Stolen . | . . . Parts Stripped . | . . . Power Chain Reactions 3 | 1 2 . Missiles Intercepted . | . . . Alert | -11 -10 -9 ------- Run | Scr Mat Mat Peak Influence 379 | 10 268 379 Initial 96 | . 5 96 Average 124 | 2 109 207 Maximum Alert Level 1 | . 1 1 Low Security (%) 67 | 100 69 50 Level 1 32 | . 30 49 Level 2 . | . . . Level 3 . | . . . Level 4 . | . . . Level 5 . | . . . High Security . | . . . Max Security . | . . . Squads Dispatched 2 | . 1 1 Investigation 1 | . 1 . Extermination . | . . . Reinforcement 1 | . . 1 Assault . | . . . Garrison . | . . . Intercept . | . . . Searches Triggered . | . . . Construction Impeded . | . . . Haulers Reinforced . | . . . Active Scanning Responses . | . . . Cargo Convoy Interrupts . | . . . Stealth | -11 -10 -9 --------- Run | Scr Mat Mat Distress Signals 2 | . 1 1 Communications Jammed . | . . . Distress Signals . | . . . Times Spotted 32 | . 10 22 Peak Tracking Total 15 | . 8 15 Tactical Retreats 2 | . . 2 Traps | -11 -10 -9 ------- Run | Scr Mat Mat Traps Triggered . | . . . Indirectly . | . . . Trap Hack Attempts . | . . . Triggered . | . . . Disarmed . | . . . Reprogrammed . | . . . Reused . | . . . Traps Extracted . | . . . Installed . | . . . Triggered . | . . . Machines | -11 -10 -9 ---------- Run | Scr Mat Mat Machines Disabled 2 | . 2 . Max in Single Turn 1 | . 1 . Machines Sabotaged . | . . . Garrisons Compromised . | . . . Overloaded Fab Kills . | . . . Hacking | -11 -10 -9 --------- Run | Scr Mat Mat Machines Accessed 4 | . 2 2 Terminals 4 | . 2 2 Fabricators . | . . . Repair Stations . | . . . Recycling Units . | . . . Scanalyzers . | . . . Garrison Access . | . . . Total Hacks 6 | . 3 3 Successful 5 | . 3 2 Failed 1 | . . 1 Catastrophic . | . . . Database Lockouts . | . . . Manual 6 | . 3 3 Terminals 6 | . 3 3 Fabricators . | . . . Repair Stations . | . . . Recycling Units . | . . . Scanalyzers . | . . . Garrison Access . | . . . Terminal Hacks 1 | . 1 . Transport Status 1 | . 1 . Fabricator Hacks . | . . . Repair Station Hacks . | . . . Recycling Unit Hacks . | . . . Scanalyzer . | . . . Garrison Access Hacks . | . . . Unauthorized Hacks 4 | . 2 2 Terminals 4 | . 2 2 Botnet 2 | . 1 1 Operators 1 | . . 1 Search 1 | . 1 . Fabricators . | . . . Repair Stations . | . . . Recycling Units . | . . . Scanalyzers . | . . . Garrison Access . | . . . Data Cores Recovered . | . . . Used . | . . . Hacking Detections 2 | . . 2 Full Trace Events . | . . . Feedback Events . | . . . Feedback Blocked . | . . . Robot Schematics Acquired . | . . . Robots Built . | . . . Authchips . | . . . Time . | . . . Total Robot Build Rating . | . . . Part Schematics Acquired . | . . . Parts Built . | . . . Authchips . | . . . Time . | . . . Total Part Build Rating . | . . . Parts Repaired . | . . . Time . | . . . Parts Recycled . | . . . Recycled Matter . | . . . Retrieved Matter . | . . . Retrieved Components . | . . . Parts Scanalyzed . | . . . Part Schematics Acquired . | . . . Parts Damaged . | . . . Bothacking | -11 -10 -9 ------------ Run | Scr Mat Mat Used RIF Installer . | . . . Robots Hacked . | . . . Non-combat . | . . . Combat . | . . . Robot Hacks Applied . | . . . Relay Couplers Released . | . . . Fabnet Peak Effective % . | . . . Robots Rewired . | . . . Allies Hacked . | . . . Hacks Repelled . | . . . Allies | -11 -10 -9 -------- Run | Scr Mat Mat Total Allies . | . . . Largest Group . | . . . Highest-Rated Group . | . . . Highest-Rated Ally . | . . . Total Orders . | . . . Ally Attacks . | . . . Total Damage . | . . . Kills . | . . . Allies Corrupted . | . . . Allies Melted . | . . . Intel | -11 -10 -9 ------- Run | Scr Mat Mat Robot Analysis Total . | . . . Derelict Logs Recovered . | . . . Drone Launches . | . . . Drone Recoveries . | . . . Exploration | -11 -10 -9 ------------- Run | Scr Mat Mat Turns Passed 760 | 116 398 246 Spaces Moved 465 | 72 264 129 Core 10 | 5 . 5 Treads . | . . . Legs 455 | 67 264 124 Wheels . | . . . Hover . | . . . Flight . | . . . Fastest Speed 50 | 50 120 120 Average Speed 121 | 115 120 126 Slowest Speed 200 | 120 120 200 Overloaded Moves . | . . . Propulsion Burnouts . | . . . Robots Hopped . | . . . Cave-ins Triggered . | . . . Exploration Rate (%) 22 | 4 51 12 Regions Visited 2 Branch Regions . Pre-discovered Areas . | . . . Known Exits Taken 1 | . 1 . Unknown Exits Taken 1 | 1 . . Scrap Searched . | . . . Spaces Dug . | . . . Terrain Destroyed 25 | . 6 19 Melee . | . . . Projectile . | . . . AOE 25 | . 6 19 Terrain Rammed . | . . . Walls Destroyed . | . . . Machines Disabled . | . . . Actions | -11 -10 -9 --------- Run | Scr Mat Mat Total 579 | 95 308 176 Wait . | . . . Move 463 | 71 263 129 Hop . | . . . Pick Up 31 | 10 15 6 Fast Attach 4 | . . 4 Attach 17 | 7 2 8 Detach . | . . . Swap 2 | 1 1 . Drop 10 | 1 7 2 Fire 52 | 5 20 27 Melee . | . . . Ram . | . . . Kick . | . . . Crush . | . . . Escape Stasis . | . . . Rewire . | . . . Trap . | . . . Miscellaneous . | . . . Route ------- -11/Scrapyard -10/Materials (discovered 2 exits: *Mat x2) -9/Materials History --------- Turn | Location | Event 6 | -11/Scrapyard | Discovered new exit (range 16) 117 | -11/Scrapyard | Entered Materials 309 | -10/Materials | Discovered new exit (range 12) 317 | -10/Materials | Build established: Mutant 427 | -10/Materials | Discovered new exit (range 16) 514 | -10/Materials | Identified exit to Materials 515 | -10/Materials | Entered another Materials area 515 | -9/Materials | Evolved 2 slots: Propulsion x2 729 | -9/Materials | Core integrity fell below 50% 744 | -9/Materials | Destroyed 7 combat bots 744 | -9/Materials | Core integrity fell below 20% 761 | -9/Materials | Destroyed by G-34 Mercenary with Small Laser Last Messages --------------- 00750_ U-05 Engineer lays Concrete. 00750_ U-05 Engineer builds a Wall. 00752_ G-47 Trooper suffers critical hit (Burn). 00752_ R-06 Scavenger inserts Hammer into recycling unit. 00753_ U-05 Engineer builds a Wall. 00753_ U-05 Engineer lays Concrete. 00754_ R-06 Scavenger suffers critical hit (Burn). 00754_ U-05 Engineer lays Concrete. 00755_ R-06 Scavenger inserts Ion Engine into recycling unit. 00756_ Recycling unit begins recycling process. 00756_ U-05 Engineer builds a Wall. 00756_ U-05 Engineer lays Concrete. 00758_ R-06 Scavenger inserts Heat Sink into recycling unit. 00759_ U-05 Engineer lays Concrete. 00759_ U-05 Engineer builds a Wall. 00759_ Acquired Imp. Treads. 00760_ U-05 Engineer builds a Door. 00760_ U-05 Engineer builds a Wall. 00760_ G-34 Mercenary suffers critical hit (Burn). 00760_ Critical hit (Burn: +37). Map ----- +----------------------------------------------------+ | ?????????????????????????????????????????????????? | | ?????????????????????????????????????????????????? | | ? ?????????????????????????????????????????????? | | ? ?????????????????????????????????????????????? | | ? "+????????????????????????????????????????????? | | # "%#????????????????????????????????????????????? | | # "#????????????????????????????????????????????? | | # #????????????????????????????????????????????? | | # #????????????????????????????????????????????? | | # #????????????????????????????????????????????? | | # #??????????????????? ??????????????????????? | | # #?????????????##???? #?????????????????????? | | # #??????#####?? ??? #?????????????????????? | | # #??????#"""#?? ??# #?????????????????????? | | # #??????#"T"#?# !=??# #?????????????????????? | | # #??#####" "### !=??# #?????????????????????? | | # #??# # =[??# ###???????????????????? | | #! #??# # ? # ???????????????????? | | #*%=#??# !!% # + ??????????????????? | | / = #??# !![ # """ # """"??????????????????? | | ##/##??# !![ # """ # """"??????????????????? | | ##%#???# # """ # """""?????????????????? | | ##*#???# % %% # # """""?????????????????? | | ##=#???# # ! # """"" ????????????????? | | ## #?#######+########### %""""?????????????????? | | ##+### % u g @ """"" ! #?????????????? | | !% T # % Y grr #?????????????? | | "" # * uuu r r #?????????????? | | "" ! + ######### /# ###"Y"## #?????????????? | | "" # #??### ##"""#??# ##?????????????? | | # #????### "" ######???? #??????????????? | | ###### #??????# "T #?????????????????????????? | | ###### #??????# "" #?????????????????????????? | | # ###????# #?????????????????????????? | | # # #???# #?????????????????????????? | | """ / + #????########?????????????????????????? | | """ # # #?????????????????????????????????????? | | """ # ###?????????????????????????????????????? | | # #???????????????????????????????????????? | | ##########???????????????????????????????????????? | | ?????????????????????????????????????????????????? | | ?????????????????????????????????????????????????? | | ?????????????????????????????????????????????????? | | ?????????????????????????????????????????????????? | | ?????????????????????????????????????????????????? | | ?????????????????????????????????????????????????? | | ?????????????????????????????????????????????????? | | ?????????????????????????????????????????????????? | | ?????????????????????????????????????????????????? | | ?????????????????????????????????????????????????? | +----------------------------------------------------+ Best States ------------- Heat Dissipation 38 Energy Generation 10 Energy Capacity 250 Matter Stores 300 Matter Capacity 300 Sight Range 16 Terrain Scan Density 10 Resistance: KI 20 Resistance: TH 20 Resistance: EX 20 Resistance: EM 20 Resistance: I 20 Resistance: S 20 Resistance: P 20 Evasion (%) 55 Offensive Hacking 10 Item Schematics ----------------- None Robot Schematics ------------------ None Fabricated ------------ Nothing Alien Tech Used ----------------- None Achievements -------------- Brute Force Challenges ------------ None Game ------ Seed ThermoelectricGravmagCore Manual? 0 Play Time 00:12:44 Cumulative 25.8 hours Start 2022.12.20 @ 06:50:20 End 2022.12.20 @ 07:03:13 Sessions 1 Manual Loads 0 Difficulty Adventurer Special Mode None Game No. 35 Rogue 25 Adventurer 5 Explorer 5 Win Type - Total 1 Types 1/0/0/0/0/0/0/0/0 Lore% 13 Gallery% 29 Achievement% 23 Wizard Run 0 Options --------- ASCII 0 Keyboard 0 Movement Mouse Keybinds 0 Fullscreen 1 Font 32/SmallcapsGlow Map View 63x52 Tactical HUD 1 Map Filters NONE Filters NONE Steam 1 RUN: cffed72b-4621-4894-ad63-9cd6caa673d1